Cogmind - Beta 15 @@@ ROGUE MODE // 2025.05.10 @ 19:00:36 // Winter2022/Polymind Player: Minty Result: Destroyed by H-88 Terminator with KE Penetrator Performance ------------- Evolutions (9) 4500 Regions Visited (24) 4800 Robots Destroyed (67) 335 Value Destroyed (2852) 2852 Prototype IDs (216) 4320 Alien Tech Used (0) 0 Bonus (13683) 13683 TOTAL SCORE: 30280 Bonus ------- Polymind Skill 10321 Follower Combat Kills 225 Entered Garrisons 400 Used RIF Installer 1000 Entered DSFs 500 Aligned with FarCom 300 Met Data Miner 300 Used Data Conduit 3000 Friendly Fire -2363 Cogmind --------- Core Integrity 0/1600 Matter 0/0 Energy 23/25 System Corruption 3% Temperature Cool (0) Movement Core (50) Location -1/Access Parts ------- > --- POWER (1) -------- (None) > --- PROPULSION (2) --- (None) > --- UTILITY (3) ------ Improved System Shield > --- WEAPON (1) ------- (None) > --- INVENTORY (1) ---- (None) Peak State ------------ > --- POWER ------------ Heavy Deuterium Engine > --- PROPULSION ------- Combat Antigrav System > --- UTILITY ---------- Advanced Launcher Guidance Computer Improved Target Analyzer Experimental Core Analyzer Improved Armor Integrity Analyzer EX Chip 1 EX Chip 1 EX Chip 1 EX Chip 1 EX Chip 1 EX Chip 1 EX Chip 1 EX Chip 1 EX Chip 1 EX Chip 1 EX Chip 2 EX Chip 2 EX Chip 2 EX Chip 2 EX Chip 2 EX Chip 2 EX Chip 2 EX Chip 2 > --- WEAPON ----------- AWS/EX-DEC > --- INVENTORY -------- Deploy-a-Sentry [Rating: 99] Favorites ----------- Power Light Ion Engine Engine Light Ion Engine Power Core Light Fission Core Reactor Antimatter Reactor Propulsion Armored Treads Treads Armored Treads Leg Flexi-carbon Leg Wheel Wheel Hover Unit Hover Unit Flight Unit VTOL Module Utility EX Chip 1 Device Cooling System Storage Advanced Energy Well Processor Targeting Computer Hackware EX Chip 1 Protection Hardened Heavy Armor Plating Weapon Gauss Rifle Energy Gun Shock Rifle Energy Cannon Neutron Cannon Ballistic Gun Gauss Rifle Ballistic Cannon Heavy Assault Cannon Launcher Improved Concussive RPG Special Weapon Remote Datajack Slashing Weapon Carbide Saw Special Melee Weapon Datajack Build | -11 -10 -10 -10 -9 -8 -7 -7 -7 -6 -6 -6 -6 -6 -5 -5 -5 -5 -4 -4 -3 -3 -2 -2 -1 ------- Run | Yrd Mat Min Exi Min Mat Fac Low Dat Pro Fac Was Fac Gar Fac Upp Upp War Pro Fac Res Gar Res DSF Acc Slots Evolved . | . . . . . . . . . . . . . . . . . . . . . . . . . Power . | . . . . . . . . . . . . . . . . . . . . . . . . . Propulsion . | . . . . . . . . . . . . . . . . . . . . . . . . . Utility . | . . . . . . . . . . . . . . . . . . . . . . . . . Weapon . | . . . . . . . . . . . . . . . . . . . . . . . . . Parts Attached . | . . . . . . . . . . . . . . . . . . . . . . . . . Power . | . . . . . . . . . . . . . . . . . . . . . . . . . Engine . | . . . . . . . . . . . . . . . . . . . . . . . . . Core . | . . . . . . . . . . . . . . . . . . . . . . . . . Reactor . | . . . . . . . . . . . . . . . . . . . . . . . . . Propulsion . | . . . . . . . . . . . . . . . . . . . . . . . . . Treads . | . . . . . . . . . . . . . . . . . . . . . . . . . Leg . | . . . . . . . . . . . . . . . . . . . . . . . . . Wheel . | . . . . . . . . . . . . . . . . . . . . . . . . . Hover . | . . . . . . . . . . . . . . . . . . . . . . . . . Flight . | . . . . . . . . . . . . . . . . . . . . . . . . . Utility . | . . . . . . . . . . . . . . . . . . . . . . . . . Device . | . . . . . . . . . . . . . . . . . . . . . . . . . Storage . | . . . . . . . . . . . . . . . . . . . . . . . . . Processor . | . . . . . . . . . . . . . . . . . . . . . . . . . Hackware . | . . . . . . . . . . . . . . . . . . . . . . . . . Protection . | . . . . . . . . . . . . . . . . . . . . . . . . . Artifact . | . . . . . . . . . . . . . . . . . . . . . . . . . Weapon . | . . . . . . . . . . . . . . . . . . . . . . . . . Energy Gun . | . . . . . . . . . . . . . . . . . . . . . . . . . Energy Cannon . | . . . . . . . . . . . . . . . . . . . . . . . . . Ballistic Gun . | . . . . . . . . . . . . . . . . . . . . . . . . . Ballistic Cannon . | . . . . . . . . . . . . . . . . . . . . . . . . . Launcher . | . . . . . . . . . . . . . . . . . . . . . . . . . Special Weapon . | . . . . . . . . . . . . . . . . . . . . . . . . . Impact Weapon . | . . . . . . . . . . . . . . . . . . . . . . . . . Slashing Weapon . | . . . . . . . . . . . . . . . . . . . . . . . . . Piercing Weapon . | . . . . . . . . . . . . . . . . . . . . . . . . . Special Melee Weapon . | . . . . . . . . . . . . . . . . . . . . . . . . . Unidentified Prototypes . | . . . . . . . . . . . . . . . . . . . . . . . . . Parts Lost 59 | . . 1 . . 7 4 1 . 2 2 . 1 . . 3 . . 12 15 . 1 . 4 6 Power 6 | . . . . . 1 . . . 1 . . . . . . . . 2 1 . . . . 1 Propulsion 17 | . . . . . . . . . 1 1 . 1 . . . . . 4 5 . 1 . 2 2 Utility 20 | . . . . . 5 4 1 . . . . . . . 2 . . 2 3 . . . 1 2 Weapon 16 | . . 1 . . 1 . . . . 1 . . . . 1 . . 4 6 . . . 1 1 Highest Loss Streak 14 | . . 1 . . 7 2 1 . 1 1 . 1 . . 3 . . 8 14 . 1 . 4 3 To Critical Strikes 1 | . . . . . . . . . . . . . . . . . . . . . . . . 1 Average Backups . | . . . . . . . . . . . 2 . . . . . . . . . . . . . Power . | . . . . . . . . . . . . . . . . . . . . . . . . . Propulsion . | . . . . . . . . . . . . . . . . . . . . . . . . . Utility . | . . . . . . . . . . . 1 . . . . . . . . . . . . . Weapon . | . . . . . . . . . . . 1 . . . . . . . . . . . . . Tool/Special . | . . . . . . . . . . . . . . . . . . . . . . . . . Unused Backups 2 | . . . . . . . . . . . . 2 . . . . . . . . . . . . Power . | . . . . . . . . . . . . . . . . . . . . . . . . . Propulsion . | . . . . . . . . . . . . . . . . . . . . . . . . . Utility 1 | . . . . . . . . . . . . 1 . . . . . . . . . . . . Weapon 1 | . . . . . . . . . . . . 1 . . . . . . . . . . . . Tool/Special . | . . . . . . . . . . . . . . . . . . . . . . . . . Average Slot Usage (%) 75 | . 80 95 84 96 94 75 75 60 93 65 100 91 75 87 68 66 66 47 55 75 89 75 57 51 Engine 4 | . 16 20 14 3 3 2 5 1 7 2 12 17 . 7 . . . . . 10 . . . 3 Core 4 | . . . . . . 2 . . . . . 2 25 10 11 11 11 3 4 . 12 12 12 2 Treads 2 | . . . . . . 7 16 3 . . . . . . . . . . . . . . . . Leg 4 | . . . . . . . . 8 9 . . . . 2 22 22 22 7 2 . . . . . Wheel 4 | . . . . . . . . . 10 21 50 3 . 16 . . . . . 21 . . . . Hover 6 | . 32 40 28 3 3 3 . . . . . 34 . . . . . 4 12 . . . . 12 Flight 2 | . . . . . . . . . . . . 2 25 9 . . . . . . 34 25 15 . Device 13 | . . . . . . 20 33 27 39 30 25 1 . 17 . . . 4 9 21 12 12 7 3 Processor 7 | . . . 4 15 15 12 9 1 . . . 6 . 2 11 11 11 8 7 10 12 12 12 2 Hackware 8 | . 16 20 35 69 67 11 . . . . . 10 . . . . . . . . . . . 20 Protection 1 | . . . . . . 2 5 5 4 . . . . . . . . . . . . . . . Energy Gun 1 | . . . . 3 2 5 . . . . . . . . . . . 3 7 . . . . . Ballistic Gun 6 | . . . . . . . . . . . . 2 25 13 23 22 22 12 4 . . . . . Special Weapon 1 | . . . . . . 2 . . . . . . . 7 . . . 2 3 10 . . . . Special Melee Weapon 2 | . 16 15 . . . . . . 7 8 . 10 . . . . . . . . . . . 6 Peak Build Rating 99 | . 7 7 99 99 99 78 78 77 72 13 12 12 7 32 32 24 24 46 46 37 37 27 27 35 Average Rating 34 | . 6 6 35 99 95 59 77 43 43 11 12 7 7 9 24 24 24 17 22 7 33 27 19 18 On Entrance 30 | . . 7 6 99 99 64 78 77 72 13 12 12 7 7 32 24 24 24 . . 37 27 27 7 Naked Turns 251 | . 4 . . . . 4 . 30 4 6 . 19 . 4 . . . 84 73 21 . . . 2 Heaviest Build 58 | . 4 4 21 21 21 58 58 58 46 26 26 26 8 19 19 15 15 21 27 13 13 11 11 12 Greatest Support 64 | 3 12 12 21 21 21 60 60 60 56 64 64 64 4 40 40 40 40 40 50 20 19 9 13 18 Greatest Overweight (x) 2 | . . . . . . 1 . . . 1 . 1 1 1 . . . 1 1 . 1 1 2 1 Average Overweight (x) . | . . . . . . . . . . . . . 1 . . . . . . . . 1 . . Largest Inventory Capacity 10 | . 1 1 2 2 2 5 1 1 10 10 6 6 . 1 1 1 1 5 5 . . . . 1 Average Capacity 1 | . . 1 1 2 2 2 1 . 5 8 6 . . . 1 1 1 1 2 . . . . . Most Carried 9 | . . 1 1 1 1 1 . . 9 8 2 2 . . . . . . . . . . . . Average Carried . | . . . 1 1 1 . . . 4 5 2 . . . . . . . . . . . . . Final Capacity 10 | . 1 1 2 2 2 1 1 1 10 6 6 . . 1 1 1 1 . . . . . . 1 Final Carried 8 | . . 1 1 1 1 . . . 8 2 2 . . . . . . . . . . . . . Class Distribution -------------------- 19% | Hunter 16% | Heavy 13% | Operator 9% | Assembler 7% | Programmer 6% | Minesweeper 6% | Swarmer 4% | Grunt 4% | Cogmind 3% | Tunneler Dominant Class ---------------- Operator | -10/Materials Operator | -10/Mines Operator | -10/Exiles Assembler | -9/Mines Assembler | -8/Materials Heavy | -7/Factory Heavy | -7/Lower Caves Grunt | -7/Data Miner Grunt | -6/Proximity Caves Minesweeper | -6/Factory Recycler | -6/Waste Operator | -6/Factory Swarmer | -6/Garrison Tunneler | -5/Factory Hunter | -5/Upper Caves Hunter | -5/Upper Caves Hunter | -5/Warlord Hunter | -4/Proximity Caves Cogmind | -4/Factory Builder | -3/Research Cutter | -3/Garrison Cutter | -2/Research Cutter | -2/DSF Operator | -1/Access Resources | -11 -10 -10 -10 -9 -8 -7 -7 -7 -6 -6 -6 -6 -6 -5 -5 -5 -5 -4 -4 -3 -3 -2 -2 -1 ----------- Run | Yrd Mat Min Exi Min Mat Fac Low Dat Pro Fac Was Fac Gar Fac Upp Upp War Pro Fac Res Gar Res DSF Acc Matter Collected 609 | . . . . . . 45 182 . . . . . . 22 223 19 . 118 . . . . . . Remotely . | . . . . . . . . . . . . . . . . . . . . . . . . . Salvage Created 2020 | . . . . 51 559 100 264 68 81 . . 14 . 30 272 . . 317 214 . 50 . . . Parts 149 | . . . . 6 40 21 9 2 13 . . 8 . . 9 . . 15 23 . 3 . . . Haulers Intercepted 1 | . . . . . . 1 . . . . . . . . . . . . . . . . . . Recyclers Shooed . | . . . . . . . . . . . . . . . . . . . . . . . . . Parts Field Recycled . | . . . . . . . . . . . . . . . . . . . . . . . . . Retrieved Matter . | . . . . . . . . . . . . . . . . . . . . . . . . . Parts Self-Destructed 55 | . . . . . . . 9 . 22 . . . . . 9 . . 15 . . . . . . Prevented 1 | . . . . . . . . . 1 . . . . . . . . . . . . . . . Kills | -11 -10 -10 -10 -9 -8 -7 -7 -7 -6 -6 -6 -6 -6 -5 -5 -5 -5 -4 -4 -3 -3 -2 -2 -1 ------- Run | Yrd Mat Min Exi Min Mat Fac Low Dat Pro Fac Was Fac Gar Fac Upp Upp War Pro Fac Res Gar Res DSF Acc Combat Hostiles Destroyed 54 | . . . . 3 15 6 5 1 6 . . 3 . 1 4 . . 6 3 . 1 . . . Guns 32 | . . . . 3 13 . . . . . . 3 . 1 4 . . 6 2 . . . . . Cannons 17 | . . . . . . 5 5 1 6 . . . . . . . . . . . . . . . AOE 4 | . . . . . 1 1 . . . . . . . . . . . . 1 . 1 . . . Classes Destroyed 13 | . . . . 1 4 3 1 . . . . 1 . . . . . 2 1 . . . . . Worker 3 | . . . . . . . . . . . . 1 . . . . . . 2 . . . . . Builder 1 | . . . . . . . . . . . . . . . . . . . 1 . . . . . Hauler 1 | . . . . . . 1 . . . . . . . . . . . . . . . . . . Recycler 2 | . . . . . 1 . . . . . . . . . . . . . 1 . . . . . Operator 2 | . . . . . . 1 . . . . . . . . . . . . 1 . . . . . Drone 1 | . . . . . . . . . . . . . . . . . . 1 . . . . . . Watcher 2 | . . . . . 2 . . . . . . . . . . . . . . . . . . . Swarmer 19 | . . . . 3 3 4 . . 4 . . 3 . 1 . . . . . . 1 . . . Grunt 27 | . . . . . 12 1 3 . 2 . . . . . 3 . . 4 2 . . . . . Brawler 3 | . . . . . 1 . 1 . . . . . . . 1 . . . . . . . . . Hunter 2 | . . . . . . . . . . . . . . . . . . 1 1 . . . . . Programmer 2 | . . . . . . 1 1 . . . . . . . . . . . . . . . . . Enhanced Grunt 1 | . . . . . . . . 1 . . . . . . . . . . . . . . . . Decomposer 1 | . . . . . . . . . . . . . . . 1 . . . . . . . . . Samaritan 2 | . . . . . . . 1 . . . . . . . 1 . . . . . . . . . Best Kill Streak 18 | . . . . 3 18 5 4 1 2 . . 4 . 1 4 . . 4 6 . 1 . . . Combat Bots Only 15 | . . . . 3 15 5 4 1 2 . . 3 . 1 4 . . 4 2 . 1 . . . Max Kills in Single Turn 2 | . . . . 1 2 2 1 1 1 . . 1 . 1 1 . . 1 2 . 1 . . . Gunslinging . | . . . . . . . . . . . . . . . . . . . . . . . . . Exploded 1 | . . . . . 1 1 . . . . . . . . . . . . 1 . 1 . . . Melee . | . . . . . . . . . . . . . . . . . . . . . . . . . Uniques/NPCs Destroyed 1 | . . . . . . 1 . . . . . . . . . . . . . . . . . . EX-DEC (-7/Factory) Combat | -11 -10 -10 -10 -9 -8 -7 -7 -7 -6 -6 -6 -6 -6 -5 -5 -5 -5 -4 -4 -3 -3 -2 -2 -1 -------- Run | Yrd Mat Min Exi Min Mat Fac Low Dat Pro Fac Was Fac Gar Fac Upp Upp War Pro Fac Res Gar Res DSF Acc Hostile Shots Fired 748 | . . 2 . 8 48 38 36 15 26 3 . 22 . 8 31 . . 71 221 6 32 . 13 168 Missed 290 | . . 1 . 4 10 14 8 7 7 . . 9 . 4 5 . . 20 99 2 19 . 3 78 Hits 458 | . . 1 . 4 38 24 28 8 19 3 . 13 . 4 26 . . 51 122 4 13 . 10 90 Melee 6 | . . . . . . . 3 . . . . . . . 1 . . . 1 1 . . . . Projectile 452 | . . 1 . 4 38 24 25 8 19 3 . 13 . 4 25 . . 51 121 3 13 . 10 90 AOE 1 | . . . . . . . . . . . . . . . . . . . 1 . . . . . Critical Strikes 23 | . . . . . 1 1 3 . . . . . . . 2 . . . 10 1 1 . . 4 Actively Blocked 3 | . . . . . . . 3 . . . . . . . . . . . . . . . . . Part Disruptions 2 | . . . . . . . . . . . . . . . . . 2 . . . . . . . Damage Taken 9636 | . . 32 . 40 554 303 428 321 372 167 . 197 . 52 519 . 39 1584 2388 104 240 . 402 1894 Core 4452 | . . 19 . 9 112 48 . 158 160 130 . 39 . 38 76 . . 764 899 49 65 . 284 1602 Absorbed by Shields 65 | . . . . . . . . . . . . . . . . . . . . . 65 . . . Ignored by Resistances 362 | . . . . . . 71 52 72 18 34 . . . . . . . . 115 . . . . . Core Remaining (%) 66 | 100 . . . 88 79 . . . 47 . . . 80 . . . . 12 21 . 91 . 80 . Volleys Fired 177 | . . . . . . 71 15 10 14 . . 14 . 4 21 . . 18 9 . 1 . . . Largest 3 | . . . . . . 2 1 1 1 . . 1 . 3 3 . . 2 3 . 1 . . . Hottest 125 | . . . . . . 100 50 90 90 . . 23 . 100 79 . . 125 125 . . . . . Shots Fired 342 | . . . . 6 36 129 16 10 14 . . 14 . 10 50 . . 35 21 . 1 . . . Gun 287 | . . . . 6 36 116 . . . . . 14 . 9 50 . . 35 21 . . . . . Cannon 53 | . . . . . . 13 16 10 14 . . . . . . . . . . . . . . . Launcher 1 | . . . . . . . . . . . . . . . . . . . . . 1 . . . Special 1 | . . . . . . . . . . . . . . 1 . . . . . . . . . . Kinetic 144 | . . . . . . 13 16 . . . . 14 . 9 50 . . 33 9 . . . . . Thermal 25 | . . . . . . . . 10 14 . . . . 1 . . . . . . . . . . Explosive 1 | . . . . . . . . . . . . . . . . . . . . . 1 . . . Electromagnetic 172 | . . . . 6 36 116 . . . . . . . . . . . 2 12 . . . . . Robot Hit Streak 13 | . . . . 2 13 9 4 6 3 . . 2 . 3 11 . . 10 6 . . . . . Robot Miss Streak 5 | . . . . 2 2 3 2 1 3 . . 5 . 2 3 . . 3 2 . 1 . . . Penetration Max 1 | . . . . . . 1 . . . . . . . . . . . 1 . . . . . . Secondary Targets 3 | . . . . . . . . . . . . . . . 1 . . 1 1 . . . . . Max Gunslinging Chain 1 | . . . . . . . . . . . . . . . 1 . . 1 1 . . . . . Autonomous 42 | . . . . 6 36 . . . . . . . . . . . . . . . . . . . Shots Hit Robots 244 | . . . . 5 36 88 10 7 10 . . 6 . 5 36 . . 23 15 . . . 2 1 Core Hits 174 | . . . . 3 31 62 6 3 5 . . 6 . 2 14 . . 13 22 1 6 . . . Critical Kills 4 | . . . . . . . . . . . . . . . 1 . . 2 1 . . . . . Critical Parts Destroyed 1 | . . . . . . . . . . . . . . . . . . 1 . . . . . . Critical Strikes 25 | . . . . . 4 13 2 . . . . . . . 1 . . 3 2 . . . . . Destroy 5 | . . . . . . . . . . . . . . . 1 . . 3 1 . . . . . Blast 4 | . . . . . . 2 2 . . . . . . . . . . . . . . . . . Corrupt 16 | . . . . . 4 11 . . . . . . . . . . . . 1 . . . . . Melee Attacks 8 | . . . . . . . . . 3 . . . . . . . . . . . 2 . 2 1 Impact . | . . . . . . . . . . . . . . . . . . . . . . . . . Slashing 4 | . . . . . . . . . . . . . . . . . . . . . 2 . 2 . Piercing . | . . . . . . . . . . . . . . . . . . . . . . . . . Sneak Attacks 3 | . . . . . . . . . 3 . . . . . . . . . . . . . . . Combat Hostiles 3 | . . . . . . . . . 3 . . . . . . . . . . . . . . . Follow-up Attacks . | . . . . . . . . . . . . . . . . . . . . . . . . . Damage Inflicted 6925 | . . 11 . 76 1096 973 586 235 356 . . 204 . 117 681 . . 653 1718 2 148 . 45 24 Guns 3178 | . . . . 76 1045 81 . . . . . 171 . 112 681 . . 653 359 . . . . . Cannons 1606 | . . . . . . 455 569 226 356 . . . . . . . . . . . . . . . Explosions 1967 | . . . . . 45 415 . . . . . . . . . . . . 1359 . 148 . . . Melee 45 | . . . . . . . . . . . . . . . . . . . . . . . 45 . Ramming 129 | . . 11 . . 6 22 17 9 . . . 33 . 5 . . . . . 2 . . . 24 Kinetic 2677 | . . . . . . 455 569 . . . . 171 . 112 681 . . 601 88 . . . . . Thermal 1121 | . . . . . 45 314 . 226 356 . . . . . . . . . 180 . . . . . Explosive 1327 | . . . . . . . . . . . . . . . . . . . 1179 . 148 . . . Electromagnetic 1626 | . . . . 76 1045 182 . . . . . . . . . . . 52 271 . . . . . Impact . | . . . . . . . . . . . . . . . . . . . . . . . . . Slashing 45 | . . . . . . . . . . . . . . . . . . . . . . . 45 . Piercing . | . . . . . . . . . . . . . . . . . . . . . . . . . Highest Corruption 8 | . . 6 6 6 . 1 4 4 4 . . . . . 5 5 5 1 8 . . . 4 3 Average Corruption 3 | . . 6 6 6 . 1 2 4 4 . . . . . 5 5 5 1 3 . . . 3 1 Corruption Purged . | . . . . . . . . . . . . . . . . . . . . . . . . . Corruption Blocked . | . . . . . . . . . . . . . . . . . . . . . . . . . Effects 48 | . . 2 3 4 . 3 5 1 3 . . . . . 9 9 2 2 4 . . . . 1 Message Errors 16 | . . 1 1 1 . 1 1 . 1 . . . . . 4 4 . . 1 . . . . 1 Matter Fused 8 | . . . . . . 1 1 . 1 . . . . . 3 2 . . . . . . . . Heat Flow Errors 8 | . . 1 1 2 . 1 . . 1 . . . . . . 1 1 . . . . . . . Energy Discharges 9 | . . . . . . . . 1 . . . . . . 1 2 1 1 3 . . . . . Data Loss (minor) 5 | . . . 1 1 . . 2 . . . . . . . . . . 1 . . . . . . Misfires 1 | . . . . . . . 1 . . . . . . . . . . . . . . . . . Weapon Failures 1 | . . . . . . . . . . . . . . . 1 . . . . . . . . . Overload Shots . | . . . . . . . . . . . . . . . . . . . . . . . . . Overflow Damage 317 | . . . . . . 211 30 . 56 . . . . . . . . . 20 . . . . . Projectiles 152 | . . . . . . 76 20 . 56 . . . . . . . . . . . . . . . Explosions 155 | . . . . . . 135 . . . . . . . . . . . . 20 . . . . . Melee 10 | . . . . . . . 10 . . . . . . . . . . . . . . . . . Knockbacks 6 | . . . . . . 4 2 . . . . . . . . . . . . . . . . . Impact . | . . . . . . . . . . . . . . . . . . . . . . . . . Kinetic 4 | . . . . . . 3 1 . . . . . . . . . . . . . . . . . Secondary 2 | . . . . . . 1 1 . . . . . . . . . . . . . . . . . Self-Inflicted Damage 38 | . . 5 . . 2 . . 4 . . . 15 . . . . . . . 1 . . . 11 Shots . | . . . . . . . . . . . . . . . . . . . . . . . . . Rammed 22 | . . 2 . . 2 2 1 1 . . . 9 . . . . . . . 1 . . . 4 Targets Rammed 23 | . . 2 . . 2 2 1 1 . . . 9 . 1 . . . . . 1 . . . 4 Kicked 1 | . . . . . . . . . . . . . . 1 . . . . . . . . . . Crushed . | . . . . . . . . . . . . . . . . . . . . . . . . . Highest Temperature 335 | . . 133 141 322 26 149 22 . 135 . . 21 . 80 194 198 335 11 43 4 303 . . 3 Average Temperature 90 | . . 78 71 172 11 77 12 . 64 . . 10 . 29 108 100 157 4 18 4 150 . . 3 Received Heat Transfer 1786 | . . . . 9 297 12 207 . 27 . . . . . 261 . . 186 356 18 359 . . 54 Effects 2 | . . . . . . . . . . . . . . . . . 1 . . . 1 . . . Energy Bleed 2 | . . . . . . . . . . . . . . . . . 1 . . . 1 . . . Siege Activations . | . . . . . . . . . . . . . . . . . . . . . . . . . Martial Activations . | . . . . . . . . . . . . . . . . . . . . . . . . . Shielding Activations . | . . . . . . . . . . . . . . . . . . . . . . . . . Robots Disrupted 2 | . . . . . 1 1 . . . . . . . . . . . . . . . . . . Combat Hostiles 2 | . . . . . 1 1 . . . . . . . . . . . . . . . . . . Robots Corrupted 4 | . . . . . 2 . 1 . . . . . . . . . . . 1 . . . . . Combat Hostiles 1 | . . . . . 1 . . . . . . . . . . . . . . . . . . . Parts Fried 11 | . . . . . 4 3 1 . . . . . . . . . . 1 2 . . . . . Impact Corruptions 3 | . . . . . . 1 2 . . . . . . . . . . . . . . . . . Robots Melted . | . . . . . . . . . . . . . . . . . . . . . . . . . Combat Hostiles . | . . . . . . . . . . . . . . . . . . . . . . . . . Parts Melted . | . . . . . . . . . . . . . . . . . . . . . . . . . Heat Transferred 400 | . . . . . 50 200 . . . . . . . . . . . . 150 . . . . . Parts Sabotaged . | . . . . . . . . . . . . . . . . . . . . . . . . . Parts Stolen . | . . . . . . . . . . . . . . . . . . . . . . . . . Parts Stripped . | . . . . . . . . . . . . . . . . . . . . . . . . . Power Chain Reactions 3 | . . . . . 1 1 . . . . . . . . . . . . 1 . . . . . Alert | -11 -10 -10 -10 -9 -8 -7 -7 -7 -6 -6 -6 -6 -6 -5 -5 -5 -5 -4 -4 -3 -3 -2 -2 -1 ------- Run | Yrd Mat Min Exi Min Mat Fac Low Dat Pro Fac Was Fac Gar Fac Upp Upp War Pro Fac Res Gar Res DSF Acc Maximum Alert Level 1 | . . . . . 1 1 . . . . . . . . . . . . 1 . . . . . Low Security (%) 93 | . 100 100 . 100 64 93 . . . 100 100 100 100 100 . . . . 42 100 100 100 100 100 Level 1 6 | . . . . . 35 6 . . . . . . . . . . . . 57 . . . . . Level 2 . | . . . . . . . . . . . . . . . . . . . . . . . . . Level 3 . | . . . . . . . . . . . . . . . . . . . . . . . . . Level 4 . | . . . . . . . . . . . . . . . . . . . . . . . . . Level 5 . | . . . . . . . . . . . . . . . . . . . . . . . . . High Security . | . . . . . . . . . . . . . . . . . . . . . . . . . Max Security . | . . . . . . . . . . . . . . . . . . . . . . . . . Peak Influence 390 | . . 10 . 70 274 297 . . . 45 15 68 40 21 . . . . 390 128 73 35 18 124 Initial 168 | . . . . . 9 101 . . . . 15 . 40 21 . . . . 168 128 43 35 18 . Average 58 | . . . . 33 139 97 . . . 1 6 17 40 2 . . . . 232 96 61 33 7 17 Influence Increases 3011 | . . 10 . 85 485 850 120 . 274 45 . 153 . 20 90 . . 145 470 . 30 . . 234 Destroy 0b10 Robot/C 1220 | . . . . 60 300 220 100 . 200 . . 60 . 20 80 . . 100 60 . 20 . . . Destroy 0b10 Robot/NC 60 | . . . . . 15 10 . . . . . 5 . . . . . 5 25 . . . . . Destroy Leader 186 | . . . . 10 54 42 20 . 20 . . 10 . . 10 . . 10 10 . . . . . Allied During Kill 66 | . . . . . . 12 . . 54 . . . . . . . . . . . . . . . Trap Triggered on 0b10 10 | . . 10 . . . . . . . . . . . . . . . . . . . . . . Successful Hack 165 | . . . . . . 69 . . . . . 27 . . . . . . . . . . . 69 Select Force Hacks 150 | . . . . . 50 . . . . . . 50 . . . . . . 50 . . . . . Disable Machine 375 | . . . . . 60 225 . . . . . . . . . . . . 90 . . . . . Destroy Structure 139 | . . . . . 6 52 . . . . . 1 . . . . . . 70 . 10 . . . Advance Influence 150 | . . . . . . . . . . . . . . . . . . . 150 . . . . . Partial Spotted 30 | . . . . 15 . . . . . . . . . . . . . . . . . . . 15 Lose Combat Pursuer 360 | . . . . . . 120 . . . 45 . . . . . . . 30 15 . . . . 150 Active Sensor Use 100 | . . . . . . 100 . . . . . . . . . . . . . . . . . . Influence Decreases 2887 | . . 10 . 60 286 891 303 . 274 . 45 95 18 50 100 . . 115 255 187 25 38 25 110 Entered New Map 457 | . . . . . 16 123 68 . . . 30 . 18 19 4 . . . 12 117 15 28 7 . Time Decay 1453 | . . 10 . 60 50 374 225 . 213 . 15 80 . 31 70 . . 95 80 70 . 10 . 70 Lost Part 414 | . . . . . 70 40 10 . 20 . . 10 . . 26 . . 20 150 . 10 . 18 40 Lost Ally 60 | . . . . . . 20 . . 40 . . . . . . . . . . . . . . . Purge Threat 450 | . . . . . 150 300 . . . . . . . . . . . . . . . . . . Miscellaneous 53 | . . . . . . 34 . . 1 . . 5 . . . . . . 13 . . . . . Squads Dispatched 26 | . 1 1 . . 3 5 . . . 3 . 3 . 2 . . . . 3 1 . 1 . 3 Investigation 12 | . . . . . 1 3 . . . 1 . 2 . 1 . . . . 2 . . 1 . 1 Extermination 4 | . . . . . . 2 . . . . . 1 . . . . . . . . . . . 1 Reinforcement 7 | . 1 . . . 2 . . . . . . . . 1 . . . . 1 1 . . . 1 Assault 3 | . . 1 . . . . . . . 2 . . . . . . . . . . . . . . Garrison . | . . . . . . . . . . . . . . . . . . . . . . . . . Intercept . | . . . . . . . . . . . . . . . . . . . . . . . . . Searches Triggered . | . . . . . . . . . . . . . . . . . . . . . . . . . Construction Impeded . | . . . . . . . . . . . . . . . . . . . . . . . . . Haulers Reinforced 1 | . . . . . . . . . . . . . . . . . . . 1 . . . . . Active Scanning Responses 1 | . . . . . . 1 . . . . . . . . . . . . . . . . . . Cargo Convoy Interrupts . | . . . . . . . . . . . . . . . . . . . . . . . . . Stealth | -11 -10 -10 -10 -9 -8 -7 -7 -7 -6 -6 -6 -6 -6 -5 -5 -5 -5 -4 -4 -3 -3 -2 -2 -1 --------- Run | Yrd Mat Min Exi Min Mat Fac Low Dat Pro Fac Was Fac Gar Fac Upp Upp War Pro Fac Res Gar Res DSF Acc Distress Signals 13 | . . . . . 2 2 . . . 2 . . . 1 . . . 1 2 . . . . 3 Communications Jammed . | . . . . . . . . . . . . . . . . . . . . . . . . . Distress Signals . | . . . . . . . . . . . . . . . . . . . . . . . . . Times Spotted 202 | . 1 3 . 5 22 20 4 6 13 6 5 10 . 7 4 . . 9 38 8 5 . 2 34 Peak Tracking Total 19 | . . 3 . 2 7 8 3 5 3 5 5 4 . 3 4 . . 5 16 3 7 . 2 19 Tactical Retreats 10 | . . . . . . 2 . . . 1 . . . . . . . 1 1 . . . . 5 Traps | -11 -10 -10 -10 -9 -8 -7 -7 -7 -6 -6 -6 -6 -6 -5 -5 -5 -5 -4 -4 -3 -3 -2 -2 -1 ------- Run | Yrd Mat Min Exi Min Mat Fac Low Dat Pro Fac Was Fac Gar Fac Upp Upp War Pro Fac Res Gar Res DSF Acc Traps Triggered 5 | . . . . . . . . . . 1 . . . . . . 1 . . . 2 . 1 . Indirectly . | . . . . . . . . . . . . . . . . . . . . . . . . . Trap Hack Attempts 98 | . 11 . . . . . . . . 25 . 61 . . . . . . . . . . . 1 Triggered 2 | . . . . . . . . . . 1 . 1 . . . . . . . . . . . . Disarmed 6 | . . . . . 6 . . . . . . . . . . . . . . . . . . . Reprogrammed 18 | . 3 . . . . 6 . . . 3 . 6 . . . . . . . . . . . . Reused 2 | . . 1 . . . . . . 1 . . . . . . . . . . . . . . . Traps Extracted 3 | . . . . . . . . . . 3 . . . . . . . . . . . . . . Installed 7 | . . 3 . . . . . . 1 3 . . . . . . . . . . . . . . Triggered 1 | . . 1 . . . . . . . . . . . . . . . . . . . . . . Most Traps Carried 11 | . . 1 . . . . . . 9 11 . . . . . . . . . . . . . . Objects Rigged 12 | . . . . . . 12 . . . . . . . . . . . . . . . . . . Exploded 3 | . . . . . . 3 . . . . . . . . . . . . . . . . . . Machines | -11 -10 -10 -10 -9 -8 -7 -7 -7 -6 -6 -6 -6 -6 -5 -5 -5 -5 -4 -4 -3 -3 -2 -2 -1 ---------- Run | Yrd Mat Min Exi Min Mat Fac Low Dat Pro Fac Was Fac Gar Fac Upp Upp War Pro Fac Res Gar Res DSF Acc Machines Disabled 25 | . . . . . 4 15 . . . . . . . . . . . . 6 . . . . . Max in Single Turn 12 | . . . . . 1 12 . . . . . . . . . . . . 2 . . . . . Garrison Access 3 | . . . . . . . . . . 1 . . . 1 . . . . . . . . . 1 Machines Repaired . | . . . . . . . . . . . . . . . . . . . . . . . . . Machines Dismantled . | . . . . . . . . . . . . . . . . . . . . . . . . . Machines Sabotaged 3 | . . . . . 1 . . . . . . 1 . . . . . . 1 . . . . . Overloaded Fab Kills . | . . . . . . . . . . . . . . . . . . . . . . . . . Hacking | -11 -10 -10 -10 -9 -8 -7 -7 -7 -6 -6 -6 -6 -6 -5 -5 -5 -5 -4 -4 -3 -3 -2 -2 -1 --------- Run | Yrd Mat Min Exi Min Mat Fac Low Dat Pro Fac Was Fac Gar Fac Upp Upp War Pro Fac Res Gar Res DSF Acc Machines Accessed 28 | . . . . . 1 6 . . . 2 . 6 . 3 1 . . . 2 1 . 2 . 4 Terminals 20 | . . . . . 1 5 . . . 1 . 4 . 2 . . . . 2 . . 2 . 3 Fabricators 1 | . . . . . . 1 . . . . . . . . . . . . . . . . . . Repair Stations 1 | . . . . . . . . . . . . 1 . . . . . . . . . . . . Recycling Units . | . . . . . . . . . . . . . . . . . . . . . . . . . Scanalyzers . | . . . . . . . . . . . . . . . . . . . . . . . . . Garrison Access 5 | . . . . . . . . . . 1 . 1 . 1 . . . . . 1 . . . 1 Total Hacks 104 | . . . . . 10 51 . . . 4 . 16 . 3 1 . . . 3 1 . 6 . 9 Successful 60 | . . . . . 10 30 . . . . . 10 . 2 1 . . . 1 1 . 1 . 4 Failed 44 | . . . . . . 21 . . . 4 . 6 . 1 . . . . 2 . . 5 . 5 Catastrophic 11 | . . . . . . 4 . . . 3 . . . . . . . . 2 . . 2 . . Database Lockouts . | . . . . . . . . . . . . . . . . . . . . . . . . . Manual 59 | . . . 1 . 6 30 . . . 4 . 5 . 1 . . . . 5 . . 1 . 6 Terminals 86 | . . . . . 10 45 . . . 2 . 10 . 2 . . . . 3 . . 6 . 8 Fabricators 6 | . . . . . . 6 . . . . . . . . . . . . . . . . . . Repair Stations 3 | . . . . . . . . . . . . 3 . . . . . . . . . . . . Recycling Units . | . . . . . . . . . . . . . . . . . . . . . . . . . Scanalyzers . | . . . . . . . . . . . . . . . . . . . . . . . . . Garrison Access 8 | . . . . . . . . . . 2 . 3 . 1 . . . . . 1 . . . 1 Terminal Hacks 37 | . . . . . 9 20 . . . . . 6 . . 1 . . . . . . 1 . . Record 1 | . . . . . . . . . . . . . . . 1 . . . . . . . . . Robot Analysis 2 | . . . . . 2 . . . . . . . . . . . . . . . . . . . Prototype ID Bank 4 | . . . . . 1 3 . . . . . . . . . . . . . . . . . . Open DSF 2 | . . . . . . . . . . . . 1 . . . . . . . . . 1 . . Level Access Points 1 | . . . . . . 1 . . . . . . . . . . . . . . . . . . Branch Access Points 1 | . . . . . . 1 . . . . . . . . . . . . . . . . . . Machine Index 1 | . . . . . . 1 . . . . . . . . . . . . . . . . . . Alert Level 4 | . . . . . 1 2 . . . . . 1 . . . . . . . . . . . . Unreport Threat 3 | . . . . . 1 2 . . . . . . . . . . . . . . . . . . Locate Traps 3 | . . . . . 1 1 . . . . . 1 . . . . . . . . . . . . Disarm Traps 1 | . . . . . 1 . . . . . . . . . . . . . . . . . . . Reprogram Traps 1 | . . . . . . 1 . . . . . . . . . . . . . . . . . . Dispatch Records 1 | . . . . . . . . . . . . 1 . . . . . . . . . . . . Maintenance Status 1 | . . . . . . 1 . . . . . . . . . . . . . . . . . . Security Status 1 | . . . . . 1 . . . . . . . . . . . . . . . . . . . Surveillance Status 1 | . . . . . . 1 . . . . . . . . . . . . . . . . . . Investigation Status 1 | . . . . . . . . . . . . 1 . . . . . . . . . . . . Recall Investigation 1 | . . . . . . 1 . . . . . . . . . . . . . . . . . . Recall Reinforcements 1 | . . . . . 1 . . . . . . . . . . . . . . . . . . . Hauler Manifests 1 | . . . . . . 1 . . . . . . . . . . . . . . . . . . Registered Prototypes 1 | . . . . . . 1 . . . . . . . . . . . . . . . . . . Zone Layout 4 | . . . . . . 3 . . . . . 1 . . . . . . . . . . . . Fabricator Hacks 1 | . . . . . . 1 . . . . . . . . . . . . . . . . . . Network Status 1 | . . . . . . 1 . . . . . . . . . . . . . . . . . . Repair Station Hacks . | . . . . . . . . . . . . . . . . . . . . . . . . . Recycling Unit Hacks . | . . . . . . . . . . . . . . . . . . . . . . . . . Scanalyzer . | . . . . . . . . . . . . . . . . . . . . . . . . . Garrison Access Hacks 4 | . . . . . . . . . . . . 1 . 1 . . . . . 1 . . . 1 Unlock Access 2 | . . . . . . . . . . . . 1 . . . . . . . 1 . . . . Seal Access 2 | . . . . . . . . . . . . . . 1 . . . . . . . . . 1 Unauthorized Hacks 18 | . . . . . 1 9 . . . . . 3 . 1 . . . . 1 . . . . 3 Terminals 12 | . . . . . 1 4 . . . . . 2 . 1 . . . . 1 . . . . 3 Assimilate 1 | . . . . . . 1 . . . . . . . . . . . . . . . . . . Botnet 4 | . . . . . . 1 . . . . . 1 . . . . . . . . . . . 2 Detonate 2 | . . . . . . 2 . . . . . . . . . . . . . . . . . . Disrupt 1 | . . . . . . . . . . . . . . . . . . . . . . . . 1 Sabotage 4 | . . . . . 1 . . . . . . 1 . 1 . . . . 1 . . . . . Fabricators 5 | . . . . . . 5 . . . . . . . . . . . . . . . . . . Report 1 | . . . . . . 1 . . . . . . . . . . . . . . . . . . Prioritize 1 | . . . . . . 1 . . . . . . . . . . . . . . . . . . Liberate 1 | . . . . . . 1 . . . . . . . . . . . . . . . . . . Fabnet 1 | . . . . . . 1 . . . . . . . . . . . . . . . . . . Haulers 1 | . . . . . . 1 . . . . . . . . . . . . . . . . . . Repair Stations 1 | . . . . . . . . . . . . 1 . . . . . . . . . . . . Mechanics 1 | . . . . . . . . . . . . 1 . . . . . . . . . . . . Recycling Units . | . . . . . . . . . . . . . . . . . . . . . . . . . Scanalyzers . | . . . . . . . . . . . . . . . . . . . . . . . . . Garrison Access . | . . . . . . . . . . . . . . . . . . . . . . . . . Data Cores Recovered 2 | . . . . . . 1 . . . . . . . . . . . . 1 . . . . . Used 1 | . . . . . . . . . . . . . . . . . . . 1 . . . . . Hacking Detections 23 | . . . . . 1 6 . . . 2 . 5 . 1 . . . . 2 1 . 2 . 3 Full Trace Events 7 | . . . . . . 2 . . . 1 . 1 . . . . . . 1 . . 1 . 1 Feedback Events 1 | . . . . . . 1 . . . . . . . . . . . . . . . . . . Corruption 1 | . . . . . . 1 . . . . . . . . . . . . . . . . . . Feedback Blocked 1 | . . . . . . 1 . . . . . . . . . . . . . . . . . . Robot Schematics Acquired . | . . . . . . . . . . . . . . . . . . . . . . . . . Robots Built . | . . . . . . . . . . . . . . . . . . . . . . . . . Authchips . | . . . . . . . . . . . . . . . . . . . . . . . . . Time . | . . . . . . . . . . . . . . . . . . . . . . . . . Total Robot Build Rating . | . . . . . . . . . . . . . . . . . . . . . . . . . Part Schematics Acquired . | . . . . . . . . . . . . . . . . . . . . . . . . . Parts Built . | . . . . . . . . . . . . . . . . . . . . . . . . . Authchips . | . . . . . . . . . . . . . . . . . . . . . . . . . Time . | . . . . . . . . . . . . . . . . . . . . . . . . . Total Part Build Rating . | . . . . . . . . . . . . . . . . . . . . . . . . . Parts Repaired . | . . . . . . . . . . . . . . . . . . . . . . . . . Time . | . . . . . . . . . . . . . . . . . . . . . . . . . Parts Recycled . | . . . . . . . . . . . . . . . . . . . . . . . . . Recycled Matter . | . . . . . . . . . . . . . . . . . . . . . . . . . Retrieved Matter . | . . . . . . . . . . . . . . . . . . . . . . . . . Retrieved Components . | . . . . . . . . . . . . . . . . . . . . . . . . . Parts Scanalyzed . | . . . . . . . . . . . . . . . . . . . . . . . . . Part Schematics Acquired . | . . . . . . . . . . . . . . . . . . . . . . . . . Parts Damaged . | . . . . . . . . . . . . . . . . . . . . . . . . . Bothacking | -11 -10 -10 -10 -9 -8 -7 -7 -7 -6 -6 -6 -6 -6 -5 -5 -5 -5 -4 -4 -3 -3 -2 -2 -1 ------------ Run | Yrd Mat Min Exi Min Mat Fac Low Dat Pro Fac Was Fac Gar Fac Upp Upp War Pro Fac Res Gar Res DSF Acc Used RIF Installer 2 | . . . . . . . . . . . . . 1 . . . . . . . 1 . . . Coupler Efficiency 1 | . . . . . . . . . . . . . . . . . . . . . 1 . . . Robots Hacked 17 | . 1 . . . . 2 . . . 1 . 3 . 2 . . . 1 3 2 . . . 2 Non-combat 8 | . 1 . . . . . . . . 1 . 2 . . . . . . 1 1 . . . 2 Combat 9 | . . . . . . 2 . . . . . 1 . 2 . . . 1 2 1 . . . . Robot Hacks Applied 27 | . 1 . . . . 4 . . . 1 . 5 . 4 . . . 1 6 3 . . . 2 map_walls 1 | . . . . . . . . . . . . . . . . . . . . 1 . . . . find_recycling 1 | . . . . . . . . . . 1 . . . . . . . . . . . . . . check_alert 1 | . . . . . . . . . . . . . . . . . . . . . . . . 1 find_terminals 3 | . 1 . . . . . . . . . . 1 . . . . . . . . . . . 1 map_route 2 | . . . . . . . . . . . . 1 . . . . . . 1 . . . . . mark_security 2 | . . . . . . . . . . . . 1 . . . . . . 1 . . . . . find_shortcuts 9 | . . . . . . 2 . . . . . 1 . 2 . . . 1 2 1 . . . . find_garrison 8 | . . . . . . 2 . . . . . 1 . 2 . . . . 2 1 . . . . Relay Couplers Released 1 | . . . . . . . . . . 1 . . . . . . . . . . . . . . Machine Destruction 1 | . . . . . . . . . . 1 . . . . . . . . . . . . . . Fabnet Peak Effective % 3 | . . . . . . . . . 3 3 3 3 3 1 1 1 1 . . . . . . . Robots Rewired 4 | . . . . . 1 1 . 1 1 . . . . . . . . . . . . . . . Allies Hacked 1 | . . . . . . 1 . . . . . . . . . . . . . . . . . . Hacks Repelled . | . . . . . . . . . . . . . . . . . . . . . . . . . Allies | -11 -10 -10 -10 -9 -8 -7 -7 -7 -6 -6 -6 -6 -6 -5 -5 -5 -5 -4 -4 -3 -3 -2 -2 -1 -------- Run | Yrd Mat Min Exi Min Mat Fac Low Dat Pro Fac Was Fac Gar Fac Upp Upp War Pro Fac Res Gar Res DSF Acc Total Allies 6 | . . 1 . . 1 2 . 1 1 . . . . . . . . . . . . . . . Largest Group 2 | . . 1 . . . 2 . 1 1 . . . . . . . . . . . . . . . Highest-Rated Group 96 | . . 31 . . . 66 . 96 96 . . . . . . . . . . . . . . . Highest-Rated Ally 96 | . . 31 . . . 40 . 96 96 . . . . . . . . . . . . . . . Total Orders 1 | . . . . . . 1 . . . . . . . . . . . . . . . . . . STAY 1 | . . . . . . 1 . . . . . . . . . . . . . . . . . . Ally Attacks 39 | . . . . . . 10 . 10 19 . . . . . . . . . . . . . . . Total Damage 1124 | . . . . . . 566 . 161 397 . . . . . . . . . . . . . . . Kills 9 | . . . . . . 5 . . 4 . . . . . . . . . . . . . . . Allies Corrupted 1 | . . . . . 1 . . . . . . . . . . . . . . . . . . . Allies Melted . | . . . . . . . . . . . . . . . . . . . . . . . . . Turrets Deployed 1 | . . . . . . 1 . . . . . . . . . . . . . . . . . . Intel | -11 -10 -10 -10 -9 -8 -7 -7 -7 -6 -6 -6 -6 -6 -5 -5 -5 -5 -4 -4 -3 -3 -2 -2 -1 ------- Run | Yrd Mat Min Exi Min Mat Fac Low Dat Pro Fac Was Fac Gar Fac Upp Upp War Pro Fac Res Gar Res DSF Acc Active Infowar (turns) 1697 | . . . . . . 438 482 6 201 163 . 70 . 194 . . . . 21 122 . . . . Optics 1017 | . . . . . . 438 482 6 . . . 70 . . . . . . 21 . . . . . A.S.S. 926 | . . . . . . 438 482 6 . . . . . . . . . . . . . . . . Terrain 316 | . . . . . . . . . . . . . . 194 . . . . . 122 . . . . Structural 122 | . . . . . . . . . . . . . . . . . . . . 122 . . . . Traps 364 | . . . . . . . . . 201 163 . . . . . . . . . . . . . . Seismic 194 | . . . . . . . . . . . . . . 194 . . . . . . . . . . Jamming 926 | . . . . . . 438 482 6 . . . . . . . . . . . . . . . . Robot Analysis Total 156 | . 1 . . . 2 2 . 151 . . . . . . . . . . . . . . . . Derelict Logs Recovered 8 | . . 1 . . . . 1 . 1 . . . . . 3 1 . 1 . . . . . . Drone Launches . | . . . . . . . . . . . . . . . . . . . . . . . . . Drone Recoveries . | . . . . . . . . . . . . . . . . . . . . . . . . . Exploration | -11 -10 -10 -10 -9 -8 -7 -7 -7 -6 -6 -6 -6 -6 -5 -5 -5 -5 -4 -4 -3 -3 -2 -2 -1 ------------- Run | Yrd Mat Min Exi Min Mat Fac Low Dat Pro Fac Was Fac Gar Fac Upp Upp War Pro Fac Res Gar Res DSF Acc Turns Passed 5657 | . 41 207 122 133 114 957 482 75 440 212 63 320 159 377 513 266 95 362 178 145 41 23 34 298 Spaces Moved 5402 | 1 54 287 215 113 137 596 259 73 422 215 64 353 139 310 373 221 80 341 266 200 89 34 50 510 Core 1237 | 1 7 76 165 . . 188 . 55 9 13 . 41 . 10 . . . 166 146 40 . . 5 315 Treads 406 | . . . . . . 144 259 3 . . . . . . . . . . . . . . . . Legs 989 | . . . . . . . . 15 158 . . . . 21 373 221 80 116 5 . . . . . Wheels 838 | . . . . . . . . . 255 202 64 10 . 155 . . . . . 152 . . . . Hover 1483 | . 47 211 50 113 137 264 . . . . . 292 . . . . . 59 115 . . . . 195 Flight 449 | . . . . . . . . . . . . 10 139 124 . . . . . 8 89 34 45 . Fastest Speed 15 | 50 50 50 50 80 80 50 170 50 50 50 100 50 115 50 120 120 120 50 50 24 15 67 21 50 Average Speed 85 | 50 55 54 56 80 80 96 170 69 94 82 100 60 115 95 120 120 120 75 55 71 21 67 57 57 Slowest Speed 170 | 50 56 56 80 80 80 170 170 170 120 100 100 115 115 120 120 120 120 120 120 80 67 67 150 100 Overloaded Moves 64 | . . . . . . . . . . . . . . . . . . . . . 35 . 29 . Propulsion Burnouts 1 | . . . . . . . . . . . . . . . . . . . . . 1 . . . Robots Hopped 1 | . . . . . . . . . . . . . . . . . . . . 1 . . . . Potential Cave-ins . | . . . . . . . . . . . . . . . . . . . . . . . . . Cave-ins Triggered . | . . . . . . . . . . . . . . . . . . . . . . . . . Exploration Rate (%) 33 | 2 20 55 62 29 22 22 45 71 61 10 63 14 36 10 69 42 14 54 9 5 22 2 81 21 Regions Visited 24 Branch Regions 10 Pre-discovered Areas 32 | . . . . 1 . . . 29 1 . . . . . 1 . . . . . . . . . Known Exits Taken 7 | . . . . . 1 1 1 . 1 . . 1 . . . . . . . 1 . 1 . . Unknown Exits Taken 12 | 1 1 1 1 1 . . . 1 . . . . . 1 1 1 1 1 1 . . . . . Scrap Searched 13 | . . 1 . . . . 2 . 2 . . . . . 2 2 . 4 . . . . . . Spaces Dug 6 | . . . . . . 5 1 . . . . . . . . . . . . . . . . . Terrain Destroyed 129 | . . . . . 6 76 8 1 3 . . . . . . . . . 35 . . . . . Melee . | . . . . . . . . . . . . . . . . . . . . . . . . . Projectile 20 | . . . . . . 8 8 1 3 . . . . . . . . . . . . . . . AOE 109 | . . . . . 6 68 . . . . . . . . . . . . 35 . . . . . Terrain Rammed . | . . . . . . . . . . . . . . . . . . . . . . . . . Walls Destroyed . | . . . . . . . . . . . . . . . . . . . . . . . . . Machines Disabled . | . . . . . . . . . . . . . . . . . . . . . . . . . Actions | -11 -10 -10 -10 -9 -8 -7 -7 -7 -6 -6 -6 -6 -6 -5 -5 -5 -5 -4 -4 -3 -3 -2 -2 -1 --------- Run | Yrd Mat Min Exi Min Mat Fac Low Dat Pro Fac Was Fac Gar Fac Upp Upp War Pro Fac Res Gar Res DSF Acc Total 6118 | . 64 338 214 155 141 844 283 85 447 253 63 449 138 380 394 222 79 389 275 199 106 33 51 516 Wait 303 | . . 40 . 43 2 174 9 . 7 3 . 12 . . 1 2 . 10 . . . . . . Move 5378 | . 53 286 214 112 136 595 258 72 421 215 63 353 138 309 372 220 79 340 265 197 88 33 49 510 Hop 1 | . . . . . . . . . . . . . . . . . . . . 1 . . . . Pick Up 7 | . . 4 . . . . . . . 3 . . . . . . . . . . . . . . Fast Attach . | . . . . . . . . . . . . . . . . . . . . . . . . . Attach . | . . . . . . . . . . . . . . . . . . . . . . . . . Detach . | . . . . . . . . . . . . . . . . . . . . . . . . . Swap . | . . . . . . . . . . . . . . . . . . . . . . . . . Drop 9 | . . 3 . . . 1 . . 1 4 . . . . . . . . . . . . . . Fire 177 | . . . . . . 71 15 10 14 . . 14 . 4 21 . . 18 9 . 1 . . . Melee 8 | . . . . . . . . . 3 . . . . . . . . . . . 2 . 2 1 Ram 19 | . . 2 . . 2 . . 1 . . . 9 . . . . . . . 1 . . . 4 Kick 1 | . . . . . . . . . . . . . . 1 . . . . . . . . . . Crush 3 | . . . . . . 2 1 . . . . . . . . . . . . . . . . . Escape Stasis 15 | . . . . . . . . . . . . . . . . . . . . . 15 . . . Rewire 5 | . . . . . 1 1 . 2 . . . . . . . . . 1 . . . . . . Trap 105 | . 11 3 . . . . . . 1 28 . 61 . . . . . . . . . . . 1 Miscellaneous 87 | . . . . . . . . . . . . . . 66 . . . 20 1 . . . . . Route ------- -11/Scrapyard -10/Materials -10/Mines (discovered 2 exits: [*Mat] / *Exi) -10/Exiles -9/Mines -8/Materials (discovered 2 exits: *Fac x2) -7/Factory (discovered 6 exits: Fac x4 / *Low x2) -7/Lower Caves -7/Data Miner -6/Proximity Caves -6/Factory -6/Waste -6/Factory -6/Garrison -5/Factory -5/Upper Caves -5/Upper Caves -5/Warlord -4/Proximity Caves -4/Factory -3/Research -3/Garrison -2/Research -2/DSF -1/Access History --------- Turn | Location | Event 1 | -11/Scrapyard | Discovered new exit (range 0) 1 | -11/Scrapyard | Entered Materials 37 | -10/Materials | Discovered new exit (range 7) 42 | -10/Materials | Entered Mines 49 | -10/Mines | Found a hidden stash of uninstalled traps 116 | -10/Mines | Met a Derelict bent on vengeance 158 | -10/Mines | Learned 8 Materials zone layouts 164 | -10/Mines | Discovered new exit (range 13) 212 | -10/Mines | Met a Derelict testing a Signal Generator 219 | -10/Mines | Found Signal Generator 246 | -10/Mines | Deemed a non-threat by the Exiles lab entrance 247 | -10/Mines | Discovered new exit (range 5) 249 | -10/Mines | Entered Exiles 263 | -10/Exiles | Met 8R-AWN 270 | -10/Exiles | Met EX-HEX 284 | -10/Exiles | Met EX-BIN 290 | -10/Exiles | Aligned with FarCom system 290 | -10/Exiles | Given EX-Vault access code 303 | -10/Exiles | Opened EX-Vault 312 | -10/Exiles | Warned to stay clear of 0b10 Research branches 327 | -10/Exiles | Met EX-DEC 332 | -10/Exiles | Took control of EX-DEC (ally) 357 | -10/Exiles | Discovered new exit (range 14) 371 | -10/Exiles | Left Exiles lab with Deploy-a-Sentry 371 | -10/Exiles | Entered Mines 372 | -9/Mines | Learned location of Storage (-9) 458 | -9/Mines | Discovered new exit (range 5) 504 | -9/Mines | Entered Materials 505 | -8/Materials | Identified exit to Factory 562 | -8/Materials | Discovered exit to Factory (range 13) 618 | -8/Materials | Entered Factory 626 | -7/Factory | Destroyed 15 combat bots 645 | -7/Factory | Lost 7 parts (1p5u1w) 646 | -7/Factory | DAS Turret deployed 712 | -7/Factory | Identified exit to Lower Caves 768 | -7/Factory | Identified exit to Factory 1076 | -7/Factory | Murdered EX-DEC 1575 | -7/Factory | Entered Lower Caves 1576 | -7/Lower Caves | Encountered a Warlord checkpoint 1795 | -7/Lower Caves | Learned Factory stockpile data 2049 | -7/Lower Caves | A Derelict revealed a hidden shortcut to meet someone special 2055 | -7/Lower Caves | Identified exit to Data Miner 2057 | -7/Lower Caves | Entered Data Miner 2057 | -7/Data Miner | Discovered new exit (range 6) 2070 | -7/Data Miner | Met Data Miner 2077 | -7/Data Miner | Interfaced with the Data Conduit 2132 | -7/Data Miner | Entered Proximity Caves 2132 | -6/Proximity Caves | Accompanied by 1 ally 2564 | -6/Proximity Caves | Discovered exit to Factory (range 11) 2568 | -6/Proximity Caves | Core integrity fell below 50% 2572 | -6/Proximity Caves | Entered Factory 2574 | -6/Factory | Loaded intel: 248 machine locations 2784 | -6/Factory | Sucked down chute 2784 | -6/Factory | Entered Waste 2807 | -6/Waste | Spotted C-40 Crusher 2814 | -6/Waste | Spotted C-40 Crusher 2816 | -6/Waste | Spotted C-40 Crusher 2819 | -6/Waste | Spotted C-40 Crusher 2833 | -6/Waste | Spotted C-40 Crusher 2834 | -6/Waste | Discovered new exit (range 13) 2847 | -6/Waste | Entered Factory 2848 | -6/Factory | Loaded intel: 266 machine locations 3167 | -6/Factory | Identified exit to Garrison 3167 | -6/Factory | Entered Garrison 3168 | -6/Garrison | Loaded intel: 31 machine locations 3226 | -6/Garrison | Installed Relay Interface Framework 3239 | -6/Garrison | Triggered checkpoint 3311 | -6/Garrison | Discovered new exit (range 14) 3326 | -6/Garrison | Entered Factory 3327 | -5/Factory | Loaded intel: 244 machine locations 3663 | -5/Factory | Discovered new exit (range 13) 3703 | -5/Factory | Entered Upper Caves 3771 | -5/Upper Caves | Lost 3 parts (2u1w) 3797 | -5/Upper Caves | Learned Factory stockpile data 3812 | -5/Upper Caves | Entered a destroyed Warlord outpost 3932 | -5/Upper Caves | Encountered a Warlord checkpoint 4097 | -5/Upper Caves | Learned 4 Factory zone layouts 4191 | -5/Upper Caves | Discovered new exit (range 16) 4216 | -5/Upper Caves | Entered another Upper Caves area 4217 | -5/Upper Caves | Encountered a Warlord checkpoint 4277 | -5/Upper Caves | Learned 4 Factory zone layouts 4475 | -5/Upper Caves | Discovered new exit (range 5) 4482 | -5/Upper Caves | Entered Warlord 4523 | -5/Warlord | System corruption cleaned by Quarantine Array 4528 | -5/Warlord | RIF detected upon attempting to enter Warlord's base 4528 | -5/Warlord | Attacked by Warlord forces 4565 | -5/Warlord | Discovered new exit (range 12) 4577 | -5/Warlord | Entered Proximity Caves 4585 | -4/Proximity Caves | Spotter reported a threat 4818 | -4/Proximity Caves | Spotted B-86 Titan 4852 | -4/Proximity Caves | Core integrity fell below 50% 4862 | -4/Proximity Caves | Core integrity fell below 20% 4886 | -4/Proximity Caves | Lost 8 parts (1p2n2u3w) 4909 | -4/Proximity Caves | Learned Research interactive machine intel 4935 | -4/Proximity Caves | Discovered new exit (range 10) 4939 | -4/Proximity Caves | Entered Factory 4942 | -4/Factory | Loaded intel: 275 machine locations 5048 | -4/Factory | Core integrity fell below 50% 5084 | -4/Factory | Discovered new exit (range 21) 5094 | -4/Factory | Lost 14 parts (1p4n3u6w) 5117 | -4/Factory | Entered Research 5118 | -3/Research | Loaded intel: 141 machine locations 5119 | -3/Research | Loaded intel: 45 interactive machine locations 5257 | -3/Research | Identified exit to Garrison 5262 | -3/Research | Entered Garrison 5263 | -3/Garrison | Loaded intel: 33 machine locations 5268 | -3/Garrison | Spotted B-86 Titan 5270 | -3/Garrison | Triggered checkpoint 5275 | -3/Garrison | Expanded RIF knowledge: Coupler Efficiency 5298 | -3/Garrison | Discovered new exit (range 10) 5303 | -3/Garrison | Entered Research 5304 | -2/Research | Loaded intel: 98 machine locations 5326 | -2/Research | Identified exit to DSF 5326 | -2/Research | Entered DSF 5327 | -2/DSF | Loaded intel: 2 machine locations 5343 | -2/DSF | Discovered new exit (range 14) 5353 | -2/DSF | Additional patrols routed to DSF 5360 | -2/DSF | Entered Access 5361 | -1/Access | Loaded intel: 114 machine locations 5388 | -1/Access | Lost 4 parts (2n1u1w) 5568 | -1/Access | Spotted B-99 Colossus 5588 | -1/Access | Lost 3 parts (2n1w) 5613 | -1/Access | Core integrity fell below 50% 5653 | -1/Access | Core integrity fell below 20% 5658 | -1/Access | Destroyed by H-88 Terminator with KE Penetrator Last Messages --------------- 05645_ Learned position of new hidden door. 05651_ Connecting with Terminal... >>Trojan(Disrupt) Trojan loaded successfully. Testing... Disruption routine running. >>Trojan(Botnet) Trojan loaded successfully. Testing... Terminal linked with 1 system. Awaiting botnet instructions. 05652_ Slug penetrates Wall. 05652_ Slug penetrates Terminal. 05652_ Slug penetrates Wall. 05655_ Penetrated by Slug. 05655_ Slug penetrates R-10 Processor. 05655_ Penetrated by Slug. 05655_ Slug penetrates Wall. 05656_ Slammed into H-88 Terminator. 05658_ Penetrated by Slug. Map ----- +----------------------------------------------------+ | ?????????????????????# #??????????# | | ?????????????????????# " #??????????# | | ?????????????????????#""" #??????????# | | ?????????????????????# """ #??????????# | | ?????????????????????# " !#??????????# | | ?????????????????????# #########??# " | | ?????????????????????# / #??# """ | | ?????????????????????#####/########### #??# """" | | ???????????????????????? ??????????# #??#! """ | | ??????????????????????? ???????????# #??# """ | | ????????????????????? ??????????# #??# " | | ????????????????????+### ??????????# #??# | | ???????????????????????## ??????????# #??# | | ????????????????????????# ###########p#### | | ????????????????????????# # = ## | | ????????????????????????# # ## | | ????????????????????????# # ## | | ????????????????????????# # s ""## | | ????????????????????????# # s" ""#### | | ????????????????????????#h # """ ""#??# | | ????????????????????????# # ss """ T"#??# | | ????????????????????????# # " """#??# | | ????????H??????????###### h/sssss "" #??#^^ ^ | | ????????????? # ####^^ ^ | | ?????????????????######## # h h | | ????????????????????????#o ############### | | ???????????????????????#T #?????????????# | | ???????????????????????##""#?????????????+ | | ?????????????????????????????????????????#### | | ???????????????????????????????BB???????????# | | ???????????????????????????????BB???????????# | | ????????????????????????????????????????????# | | ????????????????????????????????????????????# | | ????????????????????????????????????????????# | | ????????????????????????????????????????????# | | ????????????????????????????????????????????# | | ???????????????????T?????????????h??????????# # | | ???????????????????"""""?????"""???"????? # | | ?????????????????????????????"""???"??? ##### ? | | ?????????????????????????????"""???"??? ?????# ? | | ?????????????????????????????????h?????# ??????# ? | | ???????????????????????????????????????#???????#+? | | ??????????????????????????""??????????????????? ?? | | ????????????????????????????T?????????????????? ?? | | ??????????????????????????????????????????????? ?? | | ??????????????????????????????????????????????? ?? | | ?????????????????????????????????????????????????? | | ?????????????????????????????????????????????????? | | ?????????????????????????????????????????????????? | | ?????????????????????????????????????????????????? | +----------------------------------------------------+ Best States ------------- Heat Dissipation 81 Energy Generation 31 Energy Capacity 775 Matter Stores 226 Matter Capacity 250 Sight Range 20 Robot Scan Range 20 Terrain Scan Range 16 Terrain Scan Density 85 Jamming Range 12 EM Shielding 2 Armor Coverage 600 Resistance: KI 25 Resistance: TH 30 Resistance: EX 50 Resistance: EM 90 Resistance: I 50 Resistance: S 50 Resistance: P 50 Weapon Cycling 15 Phase Shifting 10 Evasion (%) 75 Targeting Accuracy 10 Melee Accuracy 5 Launcher Accuracy 40 Target Analysis 6 Core Analysis 8 Armor Integrity Analysis 40 Recoil Reduction 3 Particle Charging 25 Offensive Hacking 70 Defensive Hacking 56 Trap Extractor Capacity 6 Item Schematics ----------------- None Robot Schematics ------------------ None Fabricated ------------ Nothing Repaired ---------- Nothing Alien Tech Used ----------------- None Achievements -------------- None Challenges ------------ None Polymind | -11 -10 -10 -10 -9 -8 -7 -7 -7 -6 -6 -6 -6 -6 -5 -5 -5 -5 -4 -4 -3 -3 -2 -2 -1 ---------- Run | Yrd Mat Min Exi Min Mat Fac Low Dat Pro Fac Was Fac Gar Fac Upp Upp War Pro Fac Res Gar Res DSF Acc Hosts 20 | . 1 . 1 . . 2 . 1 1 1 . 3 . 3 . . . 1 3 2 . . . 1 Combat Hostiles 10 | . . . . . . 2 . 1 . . . 1 . 2 . . . 1 2 1 . . . . Allies 1 | . . . 1 . . . . . . . . . . . . . . . . . . . . . Unique Host Classes 13 | . 1 . 1 . . 2 . 1 1 1 . 2 . 2 . . . . . 2 . . . . Average Host Suspicion 60 | . 35 80 . 92 84 64 67 . 84 34 12 57 31 41 57 . . 97 95 100 80 6 65 84 Unsuspicious Activity 1556 | . 2 . 16 . . 809 10 160 33 32 . 38 . 339 50 . . 26 26 . . . . 15 Returns to Shadow 3 | . . . . . . 1 . . 1 . . . . . 1 . . . . . . . . . Fuzzy Dispatches 4 | . . . . . . 2 . . . . . 1 . . . . . . . . . . . 1 Protomatter Created 746 | . . 20 . 4 183 86 26 . 117 . . 30 . . 74 . . 103 103 . . . . . Used 680 | . 5 . 33 . . 136 . 120 7 5 . 42 . 70 . . . 53 172 27 . . . 10 Decayed 43 | . . 9 . . . 9 . . 25 . . . . . . . . . . . . . . . Highest Spend 120 | . 5 . 33 . . 96 . 120 7 5 . 23 . 51 . . . 53 74 22 . . . 10 Top 5 Hosts by Kills: EX-DEC (-10/Exiles: 18) H-61 Shepherd (-7/Factory: 10) H-66 Slayer (-5/Factory: 10) Enhanced Grunt (-7/Data Miner: 7) S-27 Virus (-6/Factory: 3) Game ------ Seed MetafieldSurveybotAmplifier Manual? 0 Play Time 00:47:19 Cumulative 1030.8 hours Start 2025.05.10 @ 17:08:07 End 2025.05.10 @ 19:00:36 Sessions 3 Manual Loads 0 Difficulty Rogue Special Mode Winter2022/Polymind Game No. 1267 Rogue 985 Adventurer 124 Explorer 158 Win Type - Total 44 Types 31/0/8/3/1/0/0/1/0/0 Lore% 91 Gallery% 85 Achievement% 79 Wizard Run 0 Options --------- Layout 0 ASCII 0 Keyboard 1 Movement Numpad Keybinds 0 Fullscreen 2 Font 18/X11 Map View 76x50 Zoom Use 1% Tactical HUD 1 Map Filters NONE Filters NONE Steam 1 RUN: 59cf44e3-969d-49f2-ac3f-5b71e989db39